Cogmind - Beta 11 @@@ ROGUE MODE // 2022.04.20 @ 19:25:10 Player: Okkudo Result: Destroyed by Y-45 Defender with Beam Rifle Performance ------------- Evolutions (1) 500 Regions Visited (2) 400 Robots Destroyed (22) 110 Value Destroyed (597) 597 Prototype IDs (0) 0 Alien Tech Used (0) 0 Bonus (61) 61 TOTAL SCORE: 1668 Bonus ------- High Alert Combat Kills 61 Cogmind --------- Core Integrity 0/400 Matter 212/300 Energy 99/100 System Corruption 2% Temperature Cool (9) Movement Core (250) Ox4 Location -9/Materials Parts ------- > --- POWER (1) -------- (None) > --- PROPULSION (4) --- (None) > --- UTILITY (2) ------ Medium Storage Unit > --- WEAPON (2) ------- Maul > --- INVENTORY (10) --- Light Ion Engine Cooled Ion Engine Light Nuclear Core Sensor Array Signal Interpreter Medium Laser Light Assault Rifle Grenade Launcher Mining Laser Peak State ------------ > --- POWER ------------ Light Nuclear Core > --- PROPULSION ------- Light Treads Improved Treads Improved Treads Compact Wheel > --- UTILITY ---------- Medium Storage Unit > --- WEAPON ----------- Grenade Launcher Maul > --- INVENTORY -------- Light Ion Engine Cooled Ion Engine Light Nuclear Core Compact Wheel Sensor Array Signal Interpreter Medium Laser Assault Rifle Light Assault Rifle Mining Laser [Rating: 14] Favorites ----------- Power Light Ion Engine Engine Light Ion Engine Power Core Light Nuclear Core Propulsion Light Treads Treads Light Treads Wheel Compact Wheel Utility Medium Storage Unit Device ECM Suite Storage Medium Storage Unit Weapon Assault Rifle Ballistic Gun Assault Rifle Launcher Grenade Launcher Impact Weapon Maul Build | -11 -10 -9 ------- Run | Scr Mat Mat Slots Evolved 2 | . . 2 Power . | . . . Propulsion 2 | . . 2 Utility . | . . . Weapon . | . . . Parts Attached 21 | 6 4 11 Power 2 | 1 . 1 Engine 1 | 1 . . Core 1 | . . 1 Reactor . | . . . Propulsion 8 | 2 2 4 Treads 5 | 2 1 2 Leg . | . . . Wheel 3 | . 1 2 Hover . | . . . Flight . | . . . Utility 3 | 1 2 . Device 1 | . 1 . Storage 2 | 1 1 . Processor . | . . . Hackware . | . . . Protection . | . . . Artifact . | . . . Weapon 8 | 2 . 6 Energy Gun . | . . . Energy Cannon . | . . . Ballistic Gun 4 | 2 . 2 Ballistic Cannon . | . . . Launcher 2 | . . 2 Special Weapon . | . . . Impact Weapon 2 | . . 2 Slashing Weapon . | . . . Piercing Weapon . | . . . Special Melee Weapon . | . . . Unidentified Prototypes . | . . . Parts Lost 8 | . . 8 Power 1 | . . 1 Propulsion 5 | . . 5 Utility 1 | . . 1 Weapon 1 | . . 1 Highest Loss Streak 7 | . . 7 To Critical Strikes 1 | . . 1 Average Slot Usage (%) 90 | . 97 84 Engine 7 | . 14 . Core 4 | . . 9 Treads 27 | . 26 28 Wheel 5 | . 1 10 Device 6 | . 11 2 Storage 12 | . 14 11 Ballistic Gun 20 | . 28 12 Launcher 3 | . . 6 Impact Weapon 1 | . . 2 Naked Turns . | . . . Heaviest Build 22 | 11 18 22 Greatest Support 66 | 40 40 66 Greatest Overweight (x) 4 | 2 . 4 Average Overweight (x) . | . . . Largest Inventory Capacity 10 | 8 10 10 Average Capacity 9 | 7 9 10 Most Carried 10 | 3 6 10 Average Carried 5 | 1 4 7 Final Capacity 10 | 8 10 10 Final Carried 9 | 3 6 9 Class Distribution -------------------- 100% | Mutant Dominant Class ---------------- Mutant | -10/Materials Mutant | -9/Materials Resources | -11 -10 -9 ----------- Run | Scr Mat Mat Matter Collected 570 | 248 38 284 Remotely . | . . . Salvage Created 651 | 88 81 482 Parts 40 | 3 5 32 Haulers Intercepted . | . . . Recyclers Shooed . | . . . Parts Field Recycled . | . . . Retrieved Matter . | . . . Parts Self-Destructed . | . . . Prevented . | . . . Kills | -11 -10 -9 ------- Run | Scr Mat Mat Combat Hostiles Destroyed 17 | . 2 15 Melee 1 | . . 1 Guns 5 | . 2 3 AOE 8 | . . 8 Classes Destroyed 7 | 1 1 5 Builder 1 | . . 1 Recycler 1 | 1 . . Operator 1 | . . 1 Watcher 2 | . . 2 Swarmer 5 | . . 5 Grunt 8 | . 2 6 Sentry 4 | . . 4 Best Kill Streak 10 | 1 2 10 Combat Bots Only 7 | . 2 7 Max Kills in Single Turn 3 | 1 1 3 Gunslinging . | . . . Exploded 3 | . . 3 Melee 1 | . . 1 Uniques/NPCs Destroyed . | . . . Combat | -11 -10 -9 -------- Run | Scr Mat Mat Damage Taken 1398 | . 89 1309 Core 413 | . 10 403 Absorbed by Shields . | . . . Core Remaining (%) 98 | 100 96 . Volleys Fired 57 | 13 8 36 Largest 2 | 1 2 2 Hottest 50 | 20 40 50 Shots Fired 87 | 13 16 58 Gun 75 | 13 16 46 Cannon . | . . . Launcher 12 | . . 12 Special . | . . . Kinetic 75 | 13 16 46 Thermal . | . . . Explosive 12 | . . 12 Electromagnetic . | . . . Robot Hit Streak 9 | 8 9 7 Robot Miss Streak 4 | 1 2 4 Penetration Max . | . . . Secondary Targets . | . . . Shots Hit Robots 66 | 12 10 44 Core Hits 34 | 3 5 26 Critical Kills . | . . . Critical Parts Destroyed 1 | . . 1 Critical Strikes 1 | . . 1 Smash 1 | . . 1 Melee Attacks 13 | . . 13 Impact 13 | . . 13 Slashing . | . . . Piercing . | . . . Sneak Attacks . | . . . Combat Hostiles . | . . . Follow-up Attacks . | . . . Damage Inflicted 1385 | 88 90 1207 Guns 491 | 88 90 313 Cannons . | . . . Explosions 631 | . . 631 Melee 263 | . . 263 Ramming . | . . . Kinetic 491 | 88 90 313 Thermal . | . . . Explosive 422 | . . 422 Electromagnetic 209 | . . 209 Impact 263 | . . 263 Slashing . | . . . Piercing . | . . . Highest Corruption 2 | . . 2 Average Corruption 2 | . . 2 Corruption Purged . | . . . Corruption Blocked . | . . . Effects 1 | . . 1 Matter Fused 1 | . . 1 Overload Shots . | . . . Overflow Damage 78 | . . 78 Projectiles . | . . . Explosions 12 | . . 12 Melee 66 | . . 66 Knockbacks 1 | . . 1 Impact 1 | . . 1 Kinetic . | . . . Secondary . | . . . Self-Inflicted Damage 82 | . . 82 Shots 4 | . . 4 Rammed . | . . . Targets Rammed . | . . . Kicked . | . . . Crushed . | . . . Highest Temperature 18 | . 18 8 Average Temperature 7 | . 11 4 Received Heat Transfer 456 | . 51 405 Siege Activations . | . . . Robots Corrupted 1 | . . 1 Combat Hostiles 1 | . . 1 Parts Fried 3 | . . 3 Impact Corruptions 5 | . . 5 Robots Melted . | . . . Combat Hostiles . | . . . Parts Melted . | . . . Heat Transferred . | . . . Parts Sabotaged . | . . . Parts Stolen . | . . . Parts Stripped . | . . . Power Chain Reactions . | . . . Missiles Intercepted . | . . . Alert | -11 -10 -9 ------- Run | Scr Mat Mat Peak Influence 638 | 5 83 638 Initial 3 | . 3 . Average 140 | 3 16 302 Maximum Alert Level 2 | . . 2 Low Security (%) 70 | 100 100 32 Level 1 14 | . . 33 Level 2 15 | . . 34 Level 3 . | . . . Level 4 . | . . . Level 5 . | . . . High Security . | . . . Max Security . | . . . Squads Dispatched 3 | . . 3 Investigation . | . . . Extermination . | . . . Reinforcement 3 | . . 3 Assault . | . . . Garrison . | . . . Intercept . | . . . Searches Triggered . | . . . Construction Impeded . | . . . Haulers Reinforced . | . . . Active Scanning Responses . | . . . Cargo Convoy Interrupts . | . . . Stealth | -11 -10 -9 --------- Run | Scr Mat Mat Distress Signals 2 | . 1 1 Communications Jammed . | . . . Distress Signals . | . . . Times Spotted 29 | . 5 24 Peak Tracking Total 8 | . 2 8 Tactical Retreats 1 | . 1 . Traps | -11 -10 -9 ------- Run | Scr Mat Mat Traps Triggered . | . . . Indirectly . | . . . Trap Hack Attempts . | . . . Triggered . | . . . Disarmed . | . . . Reprogrammed . | . . . Reused . | . . . Traps Extracted . | . . . Installed . | . . . Triggered . | . . . Machines | -11 -10 -9 ---------- Run | Scr Mat Mat Machines Disabled 1 | . . 1 Max in Single Turn 1 | . . 1 Machines Sabotaged . | . . . Garrisons Compromised . | . . . Overloaded Fab Kills . | . . . Hacking | -11 -10 -9 --------- Run | Scr Mat Mat Machines Accessed 2 | . 1 1 Terminals 2 | . 1 1 Fabricators . | . . . Repair Stations . | . . . Recycling Units . | . . . Scanalyzers . | . . . Garrison Access . | . . . Total Hacks 6 | . 4 2 Successful 2 | . 2 . Failed 4 | . 2 2 Catastrophic 2 | . 1 1 Database Lockouts . | . . . Manual 5 | . 3 2 Terminals 6 | . 4 2 Fabricators . | . . . Repair Stations . | . . . Recycling Units . | . . . Scanalyzers . | . . . Garrison Access . | . . . Terminal Hacks 2 | . 2 . Record 1 | . 1 . Unreport Threat 1 | . 1 . Fabricator Hacks . | . . . Repair Station Hacks . | . . . Recycling Unit Hacks . | . . . Scanalyzer . | . . . Garrison Access Hacks . | . . . Unauthorized Hacks . | . . . Terminals . | . . . Fabricators . | . . . Repair Stations . | . . . Recycling Units . | . . . Scanalyzers . | . . . Garrison Access . | . . . Data Cores Recovered . | . . . Used . | . . . Hacking Detections 2 | . 1 1 Full Trace Events . | . . . Feedback Events . | . . . Feedback Blocked . | . . . Robot Schematics Acquired . | . . . Robots Built . | . . . Authchips . | . . . Time . | . . . Total Robot Build Rating . | . . . Part Schematics Acquired . | . . . Parts Built . | . . . Authchips . | . . . Time . | . . . Total Part Build Rating . | . . . Parts Repaired . | . . . Time . | . . . Parts Recycled . | . . . Recycled Matter . | . . . Retrieved Matter . | . . . Retrieved Components . | . . . Parts Scanalyzed . | . . . Part Schematics Acquired . | . . . Parts Damaged . | . . . Bothacking | -11 -10 -9 ------------ Run | Scr Mat Mat Used RIF Installer . | . . . Robots Hacked . | . . . Non-combat . | . . . Combat . | . . . Robot Hacks Applied . | . . . Relay Couplers Released . | . . . Fabnet Peak Effective % . | . . . Robots Rewired . | . . . Allies Hacked . | . . . Hacks Repelled . | . . . Allies | -11 -10 -9 -------- Run | Scr Mat Mat Total Allies . | . . . Largest Group . | . . . Highest-Rated Group . | . . . Highest-Rated Ally . | . . . Total Orders . | . . . Ally Attacks . | . . . Total Damage . | . . . Kills . | . . . Allies Corrupted . | . . . Allies Melted . | . . . Intel | -11 -10 -9 ------- Run | Scr Mat Mat Robot Analysis Total . | . . . Derelict Logs Recovered . | . . . Drone Launches . | . . . Drone Recoveries . | . . . Exploration | -11 -10 -9 ------------- Run | Scr Mat Mat Turns Passed 947 | 114 418 415 Spaces Moved 498 | 55 244 199 Core 20 | 16 . 4 Treads 255 | 39 205 11 Legs . | . . . Wheels 223 | . 39 184 Hover . | . . . Flight . | . . . Fastest Speed 50 | 50 100 100 Average Speed 137 | 138 150 120 Slowest Speed 250 | 160 160 250 Overloaded Moves . | . . . Propulsion Burnouts . | . . . Robots Hopped . | . . . Cave-ins Triggered . | . . . Exploration Rate (%) 23 | 4 43 22 Regions Visited 2 Branch Regions . Pre-discovered Areas . | . . . Known Exits Taken . | . . . Unknown Exits Taken 2 | 1 1 . Scrap Searched . | . . . Spaces Dug 4 | . . 4 Terrain Destroyed 68 | . . 68 Melee 4 | . . 4 Projectile . | . . . AOE 64 | . . 64 Terrain Rammed . | . . . Walls Destroyed . | . . . Machines Disabled . | . . . Actions | -11 -10 -9 --------- Run | Scr Mat Mat Total 655 | 82 280 293 Wait 44 | . 19 25 Move 496 | 54 243 199 Hop . | . . . Pick Up 21 | 9 5 7 Fast Attach . | . . . Attach 12 | 6 1 5 Detach 1 | . . 1 Swap 9 | . 3 6 Drop 2 | . 1 1 Fire 57 | 13 8 36 Melee 13 | . . 13 Ram . | . . . Kick . | . . . Crush . | . . . Escape Stasis . | . . . Rewire . | . . . Trap . | . . . Miscellaneous . | . . . Route ------- -11/Scrapyard -10/Materials (discovered 2 exits: *Mat / [*Min]) -9/Materials History --------- Turn | Location | Event 25 | -11/Scrapyard | Discovered new exit (range 13) 115 | -11/Scrapyard | Entered Materials 255 | -10/Materials | Discovered new exit (range 7) 316 | -10/Materials | Build established: Mutant 453 | -10/Materials | Discovered new exit (range 16) 533 | -10/Materials | Entered another Materials area 533 | -9/Materials | Evolved 2 slots: Propulsion x2 924 | -9/Materials | Core integrity fell below 50% 934 | -9/Materials | Core integrity fell below 20% 948 | -9/Materials | Destroyed by Y-45 Defender with Beam Rifle Last Messages --------------- 00933_ Y-45 Defender system corrupted by crushing effect. 00935_ Y-45 Defender misfires. 00935_ R-06 Scavenger collects Lgt. Armor Plating. 00935_ U-05 Engineer builds a Door. 00936_ Destroyed Heat Sink. 00936_ Y-45 Defender system corrupted by crushing effect. 00938_ Y-45 Defender misfires. 00938_ R-06 Scavenger collects Corrupted Beam Rifle. 00940_ U-05 Engineer lays Concrete. 00941_ Y-45 Defender misfires. 00941_ U-05 Engineer lays Concrete. 00942_ R-06 Scavenger collects Lgt. Treads. 00942_ Com. Wheel destroyed. 00943_ U-05 Engineer lays Concrete. 00945_ Y-45 Defender destroyed. 00945_ U-05 Engineer lays Concrete. 00947_ System corrupted: Matter fused (-5). 00947_ U-05 Engineer lays Concrete. 00948_ Acquired 42 matter. 00948_ U-05 Engineer lays Concrete. Map ----- +----------------------------------------------------+ | ?????????????????????????????????????????????????? | | ??????????????????#######?##?????????????????????? | | ??????????????????# ## ####### ????????????? | | ??????????????????# ?????????????? | | ??????????????????# ?????????????????? | | ??????????????????# ?????????????????????? | | ??????????????????# #??????##????????????????? | | ??????????????????## ##???? !#????????????????? | | ???????????????????# #???" #????????????????? | | ???????????????????# ## "" #????????????????? | | ???????????????????# + "T !!=#????????????????? | | ???????????????????# ## "" !! #????????????????? | | ???????????????????# #???" != #???????????????? | | ???????????????????# #????? ##???????????????? | | ?????????########### #?##########??????????????? | | ?????????# ## ## #??????????????? | | ?????????# """ # """"?????????????????? | | ?????????# """ """""????????????????? | | ?????????# """ # """"" #??????????????? | | ?????????# / + #??????????????? | | ?????????# # ! #??????????????? | | ?????????# ""T"" # "T" #????????????### | | ?????????# """"" # # ! """ #????????????# | | ?????????# ## #####################???# | | ?????????########### %+ % Y ## ##### | | ????????????????# #%@u* ## ## | | ???????????????## #u[u ## # # | | ??????????????### #=% #???"" """ | | ?????????????#### # [ !!! #??"" """ | | ????????????##### #% !!!## """ """ [% | | ??????#######"### # T !! ## | | ??????#! ##?# # """ ## # | | ??????# #### # #?############ * | | ??????# """ + ##########??????????### | | ??????# """ # ##################### | | ??????# """ # * | | ??????# + #################### | | ??????###############"#######?????????????###### | | ???????????????# #??????????????????# | | ???????????????# """" """" !#??????????????????### | | ???????????????# """" """" #????????????????????? | | ???????????????# """" """" #????????????????????? | | ???????????????# #????????????????????? | | ????????????????###########??????????????????????? | | | | | | | | | | | | | +----------------------------------------------------+ Best States ------------- Heat Dissipation 28 Energy Generation 14 Energy Capacity 160 Matter Stores 275 Matter Capacity 300 Sight Range 16 Terrain Scan Density 10 ECM Strength 1 Evasion (%) 50 Recoil Reduction 3 Item Schematics ----------------- None Robot Schematics ------------------ None Fabricated ------------ Nothing Alien Tech Used ----------------- None Achievements -------------- None Challenges ------------ None Game ------ Seed DamperBattleClaymores Manual? 0 Play Time 00:21:55 Cumulative 28.9 hours Start 2022.04.20 @ 19:01:23 End 2022.04.20 @ 19:25:10 Sessions 1 Manual Loads 0 Difficulty Rogue Special Mode None Game No. 65 Rogue 65 Adventurer 0 Explorer 0 Win Type - Total 0 Types 0/0/0/0/0/0/0/0/0 Lore% 20 Gallery% 20 Achievement% 20 Wizard Run 0 Options --------- ASCII 0 Keyboard 0 Movement Mouse Keybinds 0 Fullscreen 1 Font 12/Terminus Map View 83x54 Tactical HUD 1 Map Filters NONE Filters NONE Steam 1 RUN: 6464a2e4-585b-4811-b3f7-36112b6355a4